fUST/lending_fUST_20241107
["ID","MTS","AMOUNT","RATE_DAILY","PERIOD"]
[341555142,1730979043675,-393.64136821,0.00030135,2]
[341555143,1730979043687,-186.7796051,0.00030135,2]
[341555144,1730979043700,-500.0,0.00030135,2]
[341555145,1730979043711,-214.24545391,0.00030135,2]
[341555146,1730979043720,-500.0,0.00030135,2]
[341555147,1730979043733,-500.0,0.00030135,2]
[341555148,1730979043744,-500.0,0.00030135,2]
[341555149,1730979043755,-635.99197081,0.00030135,2]
[341555150,1730979043764,-500.0,0.00030135,2]
[341555151,1730979043774,-500.0,0.00030135,2]
[341555152,1730979043783,-382.83350344,0.00030135,2]
[341555153,1730979043792,-153.64816705,0.00030135,2]
[341555154,1730979043802,-325.43110751,0.00030135,2]
[341555155,1730979043812,-500.0,0.00030135,2]
[341555156,1730979043824,-500.0,0.00030135,2]
[341555157,1730979043834,-500.0,0.00030135,2]
[341555158,1730979043845,-424.09117779,0.00030135,2]
[341555159,1730979043855,-500.0,0.00030135,2]
[341555160,1730979043864,-500.0,0.00030135,2]
[341555161,1730979043875,-500.0,0.00030135,2]
[341555162,1730979043887,-500.0,0.00030135,2]
[341555163,1730979043897,-500.0,0.00030135,2]
[341555164,1730979043906,-500.0,0.00030135,2]
[341555165,1730979043918,-500.0,0.00030135,2]
[341555166,1730979043928,-500.0,0.00030135,2]
[341555167,1730979043939,-500.0,0.00030135,2]
[341555168,1730979043950,-500.0,0.00030135,2]
[341555170,1730979043959,-500.0,0.00030135,2]
[341555172,1730979043969,-500.0,0.00030135,2]
[341555174,1730979043979,-300.0,0.00030135,2]
[341555176,1730979043989,-500.0,0.00030135,2]
[341555177,1730979043999,-500.0,0.00030135,2]
[341555178,1730979044012,-500.0,0.00030135,2]
[341555179,1730979044022,-500.0,0.00030135,2]
[341555180,1730979044031,-500.0,0.00030135,2]
[341555181,1730979044042,-500.0,0.00030135,2]
[341555182,1730979044052,-499.09935408,0.00030135,2]
[341555183,1730979044062,-500.0,0.00030135,2]
[341555184,1730979044072,-500.0,0.00030135,2]
[341555185,1730979044082,-500.0,0.00030135,2]
[341555186,1730979044092,-500.0,0.00030135,2]
[341555187,1730979044101,-500.0,0.00030135,2]
[341555188,1730979044111,-500.0,0.00030135,2]
[341555189,1730979044121,-237.54212072,0.00030135,2]
[341555190,1730979044130,-500.0,0.00030135,2]
[341555191,1730979044139,-518.40732767,0.00030135,2]
[341555192,1730979044148,-500.0,0.00030136,2]
[341555193,1730979044158,-500.0,0.00030136,2]
[341555194,1730979044170,-500.0,0.00030136,2]
[341555195,1730979044180,-200.0,0.00030136,2]
[341555196,1730979044191,-151.0,0.00030136,7]
[341555197,1730979044201,-151.0,0.00030136,7]
[341555198,1730979044211,-500.0,0.00030136,2]
[341555199,1730979044221,-512.45417014,0.00030136,2]
[341555200,1730979044231,-515.79224519,0.00030136,2]
[341555201,1730979044241,-500.0,0.00030136,2]
[341555202,1730979044251,-502.18403303,0.00030136,2]
[341555203,1730979044260,-151.0,0.00030136,7]
[341555204,1730979044385,-151.0,0.00030136,7]
[341555205,1730979044395,-151.0,0.00030136,7]
[341555206,1730979044405,-151.0,0.00030136,7]
[341555207,1730979044415,-151.0,0.00030136,7]
[341555208,1730979044425,-500.0,0.00030136,2]
[341555209,1730979044435,-564.71593319,0.00030136,2]
[341555210,1730979044444,-500.0,0.00030136,2]
[341555211,1730979044455,-504.25383768,0.00030136,2]
[341555212,1730979044464,-525.36453211,0.00030136,2]
[341555213,1730979044473,-500.0,0.00030136,2]
[341555214,1730979044483,-508.29986673,0.00030136,2]
[341555215,1730979044492,-506.70563957,0.00030136,2]
[341555216,1730979044502,-509.99367004,0.00030136,2]
[341555217,1730979044511,-500.0,0.00030136,2]
[341555218,1730979044521,-300.59334697,0.00030136,2]
[341555219,1730979044530,-511.02012744,0.00030136,2]
[341555220,1730979044539,-500.0,0.00030136,2]
[341555221,1730979044549,-509.4813227,0.00030136,2]
[341555222,1730979044558,-513.65248219,0.00030136,2]
[341555223,1730979044569,-151.0,0.00030136,7]
[341555224,1730979044579,-500.0,0.00030136,2]
[341555225,1730979044588,-504.35407986,0.00030136,2]
[341555226,1730979044598,-240.424606,0.00030136,7]
[341555227,1730979044607,-240.424606,0.00030136,7]
[341555228,1730979044617,-240.424606,0.00030136,7]
[341555229,1730979044626,-240.424606,0.00030136,7]
[341555230,1730979044637,-506.04214046,0.00030136,2]
[341555231,1730979044646,-250.0,0.00030136,2]
[341555232,1730979044656,-240.424606,0.00030136,7]
[341555233,1730979044665,-240.424606,0.00030136,7]
[341555234,1730979044674,-240.424606,0.00030136,7]
[341555235,1730979044685,-240.424606,0.00030136,7]
[341555236,1730979044695,-500.0,0.00030136,2]
[341555237,1730979044705,-500.0,0.00030136,2]
[341555238,1730979044715,-500.0,0.00030136,2]
[341555239,1730979044725,-515.82514339,0.00030136,2]
[341555240,1730979044735,-155.82122,0.00030136,7]
[341555241,1730979044745,-151.0,0.00030136,7]
[341555242,1730979044755,-151.0,0.00030136,7]
[341555243,1730979044765,-151.0,0.00030136,7]
[341555244,1730979044774,-151.0,0.00030136,7]
[341555245,1730979044784,-151.0,0.00030136,7]
[341555246,1730979044794,-151.0,0.00030136,7]
[341555247,1730979044804,-151.0,0.00030136,7]
[341555248,1730979044813,-151.0,0.00030136,7]
[341555249,1730979044823,-151.0,0.00030136,7]
[341555250,1730979044833,-151.0,0.00030136,7]
[341555251,1730979044842,-500.0,0.00030136,2]
[341555252,1730979044852,-500.0,0.00030136,2]
[341555253,1730979044862,-156.435833,0.00030136,7]
[341555254,1730979044873,-500.0,0.00030136,2]
[341555255,1730979044892,-500.0,0.00030136,2]
[341555256,1730979044903,-500.0,0.00030136,2]
[341555257,1730979044913,-151.0,0.00030136,7]
[341555258,1730979044923,-151.0,0.00030136,7]
[341555259,1730979044932,-151.0,0.00030136,7]
[341555260,1730979044943,-161.860257,0.00030136,7]
[341555261,1730979044952,-151.0,0.00030136,7]
[341555262,1730979044963,-151.0,0.00030136,7]
[341555263,1730979044972,-151.0,0.00030136,7]
[341555264,1730979044982,-500.0,0.00030136,2]
[341555265,1730979044992,-500.0,0.00030136,2]
[341555266,1730979045002,-151.0,0.00030136,7]
[341555267,1730979045013,-151.0,0.00030136,7]
[341555268,1730979045023,-151.0,0.00030136,7]
[341555269,1730979045033,-267.798063,0.00030136,7]
[341555270,1730979045043,-500.0,0.00030136,2]
[341555271,1730979045053,-500.0,0.00030136,2]
[341555272,1730979045063,-598.31,0.00030136,2]
[341555273,1730979045074,-151.0,0.00030136,7]
[341555274,1730979045085,-500.0,0.00030136,2]
[341555275,1730979045096,-500.0,0.00030136,2]
[341555276,1730979045107,-151.0,0.00030136,7]
[341555277,1730979045117,-287.855792,0.00030136,7]
[341555278,1730979045127,-153.746839,0.00030136,7]
[341555279,1730979045137,-500.0,0.00030136,2]
[341555280,1730979045148,-500.0,0.00030136,2]
[341555281,1730979045158,-603.93207378,0.00030136,2]
[341555282,1730979045170,-500.0,0.00030136,2]
[341555283,1730979045179,-151.0,0.00030136,7]
[341555284,1730979045189,-151.0,0.00030136,7]
[341555285,1730979045200,-152.774993,0.00030136,7]
[341555286,1730979045210,-500.0,0.00030136,2]
[341555287,1730979045220,-500.0,0.00030136,2]
[341555288,1730979045229,-500.0,0.00030136,2]
[341555289,1730979045239,-591.20590246,0.00030136,2]
[341555290,1730979045248,-513.73092923,0.00030136,2]
[341555291,1730979045258,-500.0,0.00030136,2]
[341555292,1730979045268,-152.75393887,0.00030136,2]
[341555293,1730979045278,-151.0,0.00030136,7]
[341555294,1730979045288,-151.0,0.00030136,7]
[341555295,1730979045298,-151.0,0.00030136,7]
[341555296,1730979045308,-151.0,0.00030136,7]
[341555297,1730979045318,-559.97557179,0.00030136,2]
[341555298,1730979045328,-162.24666009,0.00030136,2]
[341555299,1730979045338,-500.0,0.00030136,2]
[341555300,1730979045348,-554.42,0.00030136,2]
[341555301,1730979045357,-500.0,0.00030136,2]
[341555302,1730979045367,-500.0,0.00030136,2]
[341555303,1730979045378,-500.0,0.00030136,2]
[341555304,1730979045388,-500.0,0.00030136,2]
[341555305,1730979045397,-485.66917651,0.00030136,2]
[341555306,1730979045408,-804.62,0.00030136,2]
[341555307,1730979045419,-500.0,0.00030136,2]
[341555308,1730979045430,-500.0,0.00030136,2]
[341555309,1730979045441,-151.0,0.00030136,7]
[341555310,1730979045452,-151.0,0.00030136,7]
[341555311,1730979045463,-151.0,0.00030136,7]
[341555312,1730979045474,-151.0,0.00030136,7]
[341555313,1730979045483,-151.0,0.00030136,7]
[341555314,1730979045497,-151.0,0.00030136,7]
[341555315,1730979045508,-151.0,0.00030136,7]
[341555316,1730979045520,-151.0,0.00030136,7]
[341555317,1730979045532,-151.0,0.00030136,7]
[341555318,1730979045541,-151.0,0.00030136,7]
[341555319,1730979045553,-151.0,0.00030136,7]
[341555320,1730979045564,-151.0,0.00030136,7]
[341555321,1730979045573,-500.0,0.00030136,2]
[341555322,1730979045583,-500.0,0.00030136,2]
[341555323,1730979045593,-151.0,0.00030136,7]
[341555324,1730979045603,-151.0,0.00030136,7]
[341555325,1730979045615,-285.055093,0.00030136,7]
[341555326,1730979045625,-500.0,0.00030136,2]
[341555327,1730979045637,-500.0,0.00030136,2]
[341555328,1730979045647,-151.0,0.00030136,2]
[341555329,1730979045657,-151.0,0.00030136,2]
[341555330,1730979045669,-500.0,0.00030136,2]
[341555331,1730979045681,-151.0,0.00030136,2]
[341555332,1730979045693,-151.0,0.00030136,2]
[341555333,1730979045705,-153.924141,0.00030136,2]
[341555334,1730979045714,-500.0,0.00030136,2]
[341555335,1730979045724,-151.0,0.00030136,7]
[341555336,1730979045734,-151.0,0.00030136,7]
[341555337,1730979045744,-151.0,0.00030136,7]
[341555338,1730979045755,-151.0,0.00030136,7]
[341555339,1730979045767,-151.0,0.00030136,7]
[341555340,1730979045777,-500.0,0.00030136,2]
[341555341,1730979045787,-500.0,0.00030136,2]
[341555343,1730979045797,-309.16995871,0.00030136,2]
[341555345,1730979045807,-500.0,0.00030136,2]
[341555347,1730979045817,-500.0,0.00030136,2]
[341555349,1730979045828,-500.0,0.00030136,2]
[341555351,1730979045838,-151.0,0.00030136,7]
[341555354,1730979045853,-151.0,0.00030136,7]
[341555356,1730979045862,-151.0,0.00030136,7]
[341555357,1730979045874,-151.0,0.00030136,7]
[341555359,1730979045884,-405.49496383,0.00030136,2]
[341555361,1730979045895,-1168.96,0.00030136,2]
[341555362,1730979045905,-500.0,0.00030136,2]
[341555363,1730979045916,-500.0,0.00030136,2]
[341555364,1730979045927,-500.0,0.00030136,2]
[341555366,1730979045937,-151.0,0.00030136,7]
[341555368,1730979045952,-500.0,0.00030136,2]
[341555370,1730979045962,-151.0,0.00030136,7]
[341555371,1730979045973,-500.0,0.00030136,2]
[341555372,1730979045986,-1130.96,0.00030136,2]
[341555373,1730979045997,-500.0,0.00030136,2]
[341555374,1730979046007,-151.0,0.00030136,7]
[341555375,1730979046019,-151.0,0.00030136,7]
[341555376,1730979046029,-157.396752,0.00030136,7]
[341555377,1730979046040,-503.50685752,0.00030136,2]
[341555378,1730979046052,-151.0,0.00030136,7]
[341555379,1730979046064,-151.0,0.00030136,7]
[341555380,1730979046075,-151.0,0.00030136,7]
[341555381,1730979046085,-151.0,0.00030136,7]
[341555383,1730979046095,-151.0,0.00030136,7]
[341555384,1730979046106,-3365.41,0.00030136,2]
[341555385,1730979046116,-500.0,0.00030136,2]
[341555386,1730979046128,-500.0,0.00030136,2]
[341555387,1730979046138,-500.0,0.00030136,2]
[341555388,1730979046148,-501.97999244,0.00030409,2]
[341555389,1730979046158,-151.0,0.00030409,7]
[341555390,1730979046171,-151.0,0.00030409,7]
[341555391,1730979046181,-201.40917526,0.00030409,5]
[341555392,1730979046191,-500.0,0.0003041,2]
[341555393,1730979046202,-500.0,0.0003041,2]
[341555394,1730979046214,-200.0,0.0003041,2]
[341555395,1730979046224,-500.0,0.0003041,2]
[341555396,1730979046235,-500.0,0.0003041,2]
[341555397,1730979046247,-151.0,0.0003041,7]
[341555398,1730979046258,-416.23076496,0.0003041,2]
[341555399,1730979046269,-151.0,0.0003041,7]
[341555400,1730979046279,-177.301174,0.0003041,7]
[341555401,1730979046289,-500.0,0.0003041,2]
[341555402,1730979046299,-500.0,0.0003041,2]
[341555403,1730979046308,-500.0,0.0003041,2]
[341555404,1730979046318,-500.0,0.0003041,2]
[341555405,1730979046328,-500.0,0.0003041,2]
[341555406,1730979046338,-240.424606,0.0003041,7]
[341555407,1730979046349,-240.424606,0.0003041,7]
[341555408,1730979046359,-240.424606,0.0003041,7]
[341555409,1730979046369,-240.424606,0.0003041,7]
[341555410,1730979046379,-500.0,0.0003041,2]
[341555411,1730979046389,-151.0,0.0003041,7]
[341555412,1730979046399,-151.0,0.0003041,7]
[341555413,1730979046410,-151.0,0.0003041,7]
[341555414,1730979046420,-175.815459,0.0003041,7]
[341555415,1730979046430,-500.0,0.0003041,2]
[341555416,1730979046441,-509.83879125,0.0003041,2]
[341555417,1730979046452,-151.0,0.0003041,7]
[341555418,1730979046462,-500.0,0.0003041,2]
[341555419,1730979046473,-151.0,0.0003041,7]
[341555420,1730979046486,-151.0,0.0003041,7]
[341555421,1730979046497,-500.0,0.0003041,2]
[341555422,1730979046506,-500.0,0.0003041,2]
[341555423,1730979046516,-500.0,0.0003041,2]
[341555424,1730979046528,-500.0,0.0003041,2]
[341555425,1730979046538,-554.42,0.0003041,2]
[341555426,1730979046548,-500.0,0.0003041,2]
[341555427,1730979046559,-500.0,0.0003041,2]
[341555428,1730979046570,-804.62,0.0003041,2]
[341555430,1730979046581,-500.0,0.0003041,2]
[341555431,1730979046591,-442.11,0.0003041,2]
[341555432,1730979046601,-151.0,0.0003041,7]
[341555433,1730979046613,-151.0,0.0003041,7]
[341555434,1730979046625,-151.0,0.0003041,7]
[341555435,1730979046635,-155.384671,0.0003041,7]
[341555436,1730979046646,-417.94182287,0.0003041,2]
[341555437,1730979046657,-500.0,0.0003041,2]
[341555438,1730979046668,-502.55214816,0.0003041,2]
[341555439,1730979046679,-500.0,0.0003041,2]
[341555440,1730979046689,-151.0,0.0003041,7]
[341555441,1730979046698,-151.0,0.0003041,7]
[341555442,1730979046708,-201.533624,0.0003041,7]
[341555443,1730979046718,-500.0,0.0003041,2]
[341555444,1730979046727,-500.0,0.0003041,2]
[341555445,1730979046739,-500.0,0.0003041,2]
[341555446,1730979046752,-500.0,0.0003041,2]
[341555447,1730979046761,-1168.96,0.0003041,2]
[341555448,1730979046772,-608.82424072,0.0003041,2]
[341555449,1730979046782,-382.85745923,0.0003041,2]
[341555450,1730979046792,-500.0,0.0003041,2]
[341555451,1730979046801,-454.76332606,0.0003041,2]
[341555452,1730979046811,-1130.96,0.0003041,2]
[341555453,1730979046822,-500.0,0.0003041,2]
[341555454,1730979046833,-3365.41,0.0003041,2]
[341555455,1730979046844,-297.259256,0.0003041,2]
[341555456,1730979046854,-501.11341868,0.00030434,5]
[341555457,1730979046863,-507.62926564,0.00030434,5]
[341555458,1730979046874,-500.0,0.00030434,5]
[341555459,1730979046885,-1695.17394625,0.00030452,2]
[341555460,1730979046895,-159.3717535,0.00030456,5]
[341555461,1730979046906,-502.0170931,0.00030456,5]
[341555462,1730979047015,-500.89101891,0.00030456,5]
[341555463,1730979047026,-501.0675274,0.00030456,5]
[341555464,1730979047035,-500.0,0.00030476,2]
[341555465,1730979047045,-500.0,0.00030476,5]
[341555466,1730979047054,-430.74357526,0.00030476,5]
[341555467,1730979047063,-500.0,0.00030476,2]
[341555468,1730979047073,-500.0,0.00030476,5]
[341555469,1730979047082,-500.0,0.00030476,5]
[341555470,1730979047092,-500.0,0.00030479,7]
[341555471,1730979047101,-501.68223988,0.00030496,5]
[341555472,1730979047110,-163.87925281,0.000305,2]
[341555473,1730979047119,-559.76919488,0.000305,5]
[341555474,1730979047129,-501.03578781,0.00030532,5]
[341555475,1730979047139,-151.0,0.00030532,7]
[341555476,1730979047149,-605.27195174,0.00030556,5]
[341555477,1730979047158,-500.0,0.00030584,2]
[341555478,1730979047169,-500.0,0.00030584,2]
[341555479,1730979047179,-500.0,0.00030584,2]
[341555480,1730979047189,-363.37799158,0.00030584,2]
[341555481,1730979047200,-500.0,0.00030586,5]
[341555482,1730979047212,-500.0,0.00030586,5]
[341555483,1730979047224,-151.0,0.00030613,7]
[341555484,1730979047234,-212.72014776,0.00030613,5]
[341555485,1730979047245,-500.0,0.00030684,2]
[341555486,1730979047256,-500.0,0.00030684,2]
[341555487,1730979047268,-180.69786622,0.00030684,2]
[341555488,1730979047278,-500.0,0.00030684,2]
[341555489,1730979047297,-500.0,0.00030684,2]
[341555490,1730979047307,-322.88877168,0.00030684,2]
[341555491,1730979047317,-500.0,0.00030684,2]
[341555492,1730979047329,-500.0,0.00030684,2]
[341555493,1730979047339,-240.424606,0.00030684,7]
[341555494,1730979047349,-240.424606,0.00030684,7]
[341555495,1730979047360,-240.424606,0.00030684,7]
[341555496,1730979047370,-240.424606,0.00030684,7]
[341555497,1730979047380,-234.25376616,0.00030684,2]
[341555498,1730979047391,-500.0,0.00030684,2]
[341555499,1730979047402,-470.06,0.00030684,2]
[341555500,1730979047412,-500.0,0.00030684,2]
[341555501,1730979047422,-500.0,0.00030684,2]
[341555502,1730979047432,-500.0,0.00030684,2]
[341555503,1730979047441,-554.42,0.00030684,2]
[341555504,1730979047452,-500.0,0.00030684,2]
[341555505,1730979047462,-500.0,0.00030684,2]
[341555506,1730979047472,-804.62,0.00030684,2]
[341555507,1730979047482,-500.0,0.00030684,2]
[341555508,1730979047493,-500.0,0.00030684,2]
[341555509,1730979047504,-500.0,0.00030684,2]
[341555510,1730979047514,-500.0,0.00030684,2]
[341555511,1730979047526,-500.0,0.00030684,2]
[341555512,1730979047537,-437.4730819,0.00030684,2]
[341555513,1730979047548,-193.01477318,0.00030684,2]
[341555514,1730979047559,-1168.96,0.00030684,2]
[341555515,1730979047568,-500.0,0.00030684,2]
[341555516,1730979047579,-1130.96,0.00030684,2]
[341555517,1730979047588,-500.0,0.00030684,2]
[341555518,1730979047599,-3365.41,0.00030684,2]
[341555519,1730979047609,-500.0,0.00030696,2]
[341555520,1730979047620,-454.6035365,0.0003074,30]
[341555521,1730979047631,-1695.17394625,0.00030868,2]
[341555522,1730979047641,-194.92625481,0.00030958,2]
[341555523,1730979047657,-500.0,0.00030958,2]
[341555524,1730979047668,-500.0,0.00030958,2]
[341555525,1730979047679,-500.0,0.00030958,2]
[341555526,1730979047689,-500.0,0.00030958,2]
[341555527,1730979047699,-500.0,0.00030958,2]
[341555528,1730979047709,-240.424606,0.00030958,7]
[341555529,1730979047718,-240.424606,0.00030958,7]
[341555530,1730979047727,-240.424606,0.00030958,7]
[341555531,1730979047736,-240.424611,0.00030958,7]
[341555532,1730979047745,-500.0,0.00030958,2]
[341555533,1730979047755,-500.0,0.00030958,2]
[341555534,1730979047764,-500.0,0.00030958,2]
[341555535,1730979047774,-500.0,0.00030958,2]
[341555536,1730979047783,-554.42,0.00030958,2]
[341555537,1730979047793,-500.0,0.00030958,2]
[341555538,1730979047802,-500.0,0.00030958,2]
[341555539,1730979047812,-804.62,0.00030958,2]
[341555540,1730979047821,-500.0,0.00030958,2]
[341555541,1730979047830,-500.0,0.00030958,2]
[341555542,1730979047839,-500.0,0.00030958,2]
[341555543,1730979047848,-500.0,0.00030958,2]
[341555544,1730979047858,-500.0,0.00030958,2]
[341555545,1730979047868,-1168.96,0.00030958,2]
[341555546,1730979047878,-500.0,0.00030958,2]
[341555547,1730979047887,-1130.96,0.00030958,2]
[341555548,1730979047896,-500.0,0.00030958,2]
[341555549,1730979047906,-3365.41,0.00030958,2]
[341555550,1730979047916,-1000.0,0.00031,120]
[341555551,1730979047927,-600.0,0.00031231,2]
[341555552,1730979047938,-500.0,0.00031232,2]
[341555553,1730979047950,-500.0,0.00031232,2]
[341555554,1730979047961,-500.0,0.00031232,2]
[341555555,1730979047971,-500.0,0.00031232,2]
[341555556,1730979047984,-500.0,0.00031232,2]
[341555557,1730979047995,-500.0,0.00031232,2]
[341555558,1730979048006,-500.0,0.00031232,2]
[341555559,1730979048016,-500.0,0.00031232,2]
[341555560,1730979048025,-554.42,0.00031232,2]
[341555561,1730979048036,-500.0,0.00031232,2]
[341555562,1730979048046,-500.0,0.00031232,2]
[341555563,1730979048056,-804.62,0.00031232,2]
[341555564,1730979048065,-500.0,0.00031232,2]
[341555565,1730979048075,-500.0,0.00031232,2]
[341555566,1730979048084,-500.0,0.00031232,2]
[341555567,1730979048093,-500.0,0.00031232,2]
[341555568,1730979048104,-500.0,0.00031232,2]
[341555569,1730979048113,-1168.96,0.00031232,2]
[341555570,1730979048123,-500.0,0.00031232,2]
[341555571,1730979048133,-1130.96,0.00031232,2]
[341555572,1730979048142,-500.0,0.00031232,2]
[341555573,1730979048152,-3365.41,0.00031232,2]
[341555574,1730979048163,-1695.17394625,0.00031284,2]
[341555575,1730979048175,-294.473559,0.00031362,2]
[341555576,1730979048184,-1077.553104,0.00031362,2]
[341555577,1730979048194,-169.119117,0.00031362,2]
[341555578,1730979048204,-500.0,0.00031506,2]
[341555579,1730979048215,-500.0,0.00031506,2]
[341555580,1730979048225,-500.0,0.00031506,2]
[341555581,1730979048234,-509.28142649,0.00031506,2]
[341555582,1730979048245,-500.0,0.00031506,2]
[341555583,1730979048255,-500.0,0.00031506,2]
[341555584,1730979048264,-500.0,0.00031506,2]
[341555585,1730979048273,-500.0,0.00031506,2]
[341555586,1730979048283,-554.42,0.00031506,2]
[341555587,1730979048292,-500.0,0.00031506,2]
[341555588,1730979048302,-500.0,0.00031506,2]
[341555589,1730979048314,-804.62,0.00031506,2]
[341555590,1730979048323,-500.0,0.00031506,2]
[341555591,1730979048333,-500.0,0.00031506,2]
[341555592,1730979048343,-500.0,0.00031506,2]
[341555593,1730979048353,-500.0,0.00031506,2]
[341555594,1730979048362,-1168.96,0.00031506,2]
[341555595,1730979048372,-500.0,0.00031506,2]
[341555596,1730979048381,-1130.96,0.00031506,2]
[341555597,1730979048391,-500.0,0.00031506,2]
[341555598,1730979048401,-3365.41,0.00031506,2]
[341555599,1730979048410,-112200.74340043,0.00031537,2]
[341555600,1730979048420,-164.327,0.0003159,30]
[341555601,1730979048430,-34992.09952734,0.00031591,2]
[341555602,1730979048439,-501.62001778,0.00031592,5]
[341555603,1730979048449,-500.0,0.00031592,5]
[341555604,1730979048458,-1695.17394625,0.000317,2]
[341555605,1730979048468,-294.473559,0.00031754,2]
[341555606,1730979048477,-1077.553104,0.00031754,2]
[341555607,1730979048487,-500.0,0.0003178,2]
[341555608,1730979048498,-500.0,0.0003178,2]
[341555609,1730979048509,-500.0,0.0003178,2]
[341555610,1730979048520,-500.0,0.0003178,2]
[341555611,1730979048530,-500.0,0.0003178,2]
[341555612,1730979048540,-500.0,0.0003178,2]
[341555613,1730979048551,-180.652645,0.0003178,2]
[341555614,1730979048560,-554.42,0.0003178,2]
[341555615,1730979048569,-500.0,0.0003178,2]
[341555616,1730979048578,-500.0,0.0003178,2]
[341555617,1730979048587,-804.62,0.0003178,2]
[341555618,1730979048596,-500.0,0.0003178,2]
[341555619,1730979048605,-500.0,0.0003178,2]
[341555620,1730979048615,-500.0,0.0003178,2]
[341555621,1730979048625,-500.0,0.0003178,2]
[341555622,1730979048634,-1168.96,0.0003178,2]
[341555623,1730979048643,-500.0,0.0003178,2]
[341555624,1730979048653,-1130.96,0.0003178,2]
[341555625,1730979048662,-500.0,0.0003178,2]
[341555626,1730979048672,-3365.41,0.0003178,2]
[341555627,1730979048682,-166.666666,0.00031783,2]
[341555628,1730979048691,-150.112233,0.000318,19]
[341555629,1730979048702,-150.112233,0.000318,10]
[341555630,1730979048712,-150.112233,0.000318,14]
[341555631,1730979048721,-823.36296636,0.000318,2]
[341555632,1730979048731,-537964.40059994,0.000318,2]
[341555633,1730979048749,-128681.44611306,0.000318,2]
[341555634,1730979048758,-1000.0,0.00031804,5]
[341555635,1730979048767,-1000.0,0.00031846,2]
[341555636,1730979048776,-1000.0,0.00031846,5]
[341555637,1730979048786,-500.0,0.00031846,2]
[341555638,1730979048795,-1000.0,0.00031846,5]
[341555639,1730979048805,-1000.0,0.00031846,5]
[341555640,1730979048814,-150.112234,0.000319,19]
[341555641,1730979048824,-150.112233,0.000319,11]
[341555642,1730979048833,-3000.0,0.000319,9]
[341555643,1730979048842,-50433.43263994,0.000319,2]
[341555644,1730979048862,-1467.72266236,0.000319,2]
[341555645,1730979049797,-497446.1307065,0.000319,2]
[341555646,1730979051512,24900.0,0.00029628,2]
[341555660,1730979100082,1169.27083333,0.00026411,2]
[341555661,1730979112068,500.0,0.00028835,7]
[341555667,1730979162423,1169.27083333,0.00024555,2]
[341555669,1730979193336,1073.01924944,0.00029936,2]
[341555670,1730979215032,203.04,0.00026,2]
[341555671,1730979215402,203.04,0.00028,2]
[341555672,1730979225674,1169.27083333,0.00022698,2]
[341555673,1730979283489,162.43,0.00026,2]
[341555674,1730979283986,162.43,0.00029,2]
[341555675,1730979287967,1169.27083333,0.00020841,2]
[341555678,1730979401691,164.483061,0.00013973,2]
[341555679,1730979401900,164.483061,0.00027641,2]
[341555681,1730979547977,2081.1995231,0.0002953,2]
[341555686,1730979651361,1169.27083333,0.00028276,2]